fUSD/lending_fUSD_20240623
["ID","MTS","AMOUNT","RATE_DAILY","PERIOD"]
[330206745,1719159032235,-179.98125638,0.0001199,2]
[330206746,1719159032244,-150.0,0.00011999,2]
[330206747,1719159032253,-688.0,0.00012,2]
[330206748,1719159032263,-10949.51866271,0.00012,2]
[330206749,1719159032272,-53304.79936487,0.00012,2]
[330206750,1719159032286,-345.52225565,0.00012,2]
[330206751,1719159032305,-2400.0,0.00012,2]
[330206752,1719159032336,-1684.86444504,0.00012,2]
[330206753,1719159032347,-2703.71670388,0.00012,2]
[330206754,1719159032367,-380.82981456,0.00012,2]
[330206755,1719159032404,-903.00185865,0.00012,2]
[330206756,1719159032416,-1280.56006859,0.00012,2]
[330206757,1719159032437,-1500.599673,0.00012,2]
[330206758,1719159032454,-11526.53708621,0.00012,2]
[330206759,1719159032466,-3443.03904158,0.00012,2]
[330206760,1719159032478,-530.0,0.00012,2]
[330206761,1719159032499,-2034.51281324,0.00012,2]
[330206768,1719159037503,-636.94134,0.000119,2]
[330206810,1719159038823,-9000.00010836,0.000119,2]
[330206812,1719159038835,-302.0,0.000119,2]
[330206816,1719159038859,-639.75,0.000119,2]
[330206821,1719159038898,-6363.60206813,0.000119,2]
[330206823,1719159038910,-1439.85912565,0.000119,2]
[330206827,1719159038937,-20834.65949868,0.000119,2]
[330206829,1719159038949,-12929.52517846,0.000119,2]
[330206834,1719159038982,-304.6,0.000119,2]
[330206892,1719159039563,-1183.42687505,0.000119,2]
[330206906,1719159039685,-3532.00000001,0.000119,2]
[330206913,1719159039750,-1120.80483097,0.000119,2]
[330206926,1719159039871,-64882.4322637,0.000119,2]
[330206929,1719159039882,-621.0,0.00012,2]
[330206931,1719159039892,-619645.6461503,0.00012,2]
[330206942,1719159040005,-80879.70179123,0.00012,2]
[330207111,1719159042736,-1923.48556565,0.000119,2]
[330207112,1719159042746,-1422.24888737,0.00011999,2]
[330207113,1719159042770,-1607.60830694,0.00011999,2]
[330207114,1719159042781,-590.47649773,0.00012,2]
[330207129,1719159045753,-361.43872924,0.00012,2]
[330207130,1719159045766,-424.35038744,0.00012,2]
[330207131,1719159045906,-3409.9853347,0.00012,2]
[330207178,1719159231885,816.84,9.225e-05,2]
[330207179,1719159302165,20301.89292845,9.225e-05,2]
[330207180,1719159303044,263.23883182,9.225e-05,2]
[330207187,1719159394179,20301.89292845,9.225e-05,2]
[330207190,1719159484677,20301.89292845,9.225e-05,2]
[330207191,1719159533765,1000.0,0.00025,60]
[330207194,1719159840563,775.99,8.692e-05,2]
[330207195,1719159903740,20301.89292845,8.692e-05,2]
[330207196,1719159973822,155.0,9.4e-05,2]
[330207197,1719159991304,1251.56233215,9.4e-05,2]
[330207198,1719160007244,20048.659404,8.692e-05,2]
[330207207,1719160231837,523.58022278,9.4e-05,2]
[330207208,1719160231867,-169.58,0.00010498,2]
[330207209,1719160231877,-97.65393513,0.00010527,2]
[330207210,1719160231888,-2426.29606487,0.00010527,2]
[330207211,1719160231898,-300.0,0.00010533,2]
[330207212,1719160231907,-57.54095146,0.00010534,2]
[330207213,1719160231979,-4496.71,0.00010534,2]
[330207214,1719160231990,-7028.89931554,0.00010534,2]
[330207215,1719160232011,-1175.13369546,0.00010534,2]
[330207216,1719160232023,-758.17535,0.00010534,2]
[330207222,1719160237805,-8999.8986546,0.00010534,2]
[330207223,1719160237818,-1373.64203294,0.00010534,2]
[330207224,1719160237828,-158.93,0.00010606,2]
[330207225,1719160237839,-200.0,0.00010629,2]
[330207226,1719160237849,-250.0,0.00010636,2]
[330207227,1719160237859,-250.0,0.0001071,2]
[330207228,1719160237869,-181.22,0.00010906,2]
[330207229,1719160237879,-171.92,0.00010906,2]
[330207230,1719160237889,-150.99,0.00010956,2]
[330207231,1719160237899,-775.99,0.00010956,2]
[330207232,1719160237909,-137.13528479,0.00010959,2]
[330207233,1719160237923,-12.86471521,0.00010959,2]
[330207234,1719160237933,-307.05680107,0.00011056,2]
[330207235,1719160237943,-154.77,0.00011056,2]
[330207236,1719160237956,-499.99,0.00011094,2]
[330207237,1719160237966,-155.0,0.00011099,2]
[330207238,1719160237975,-155.0,0.00011099,2]
[330207239,1719160237985,-395.74476773,0.00011099,2]
[330207240,1719160237995,-423.67,0.000111,2]
[330207241,1719160238004,-900.07,0.000111,2]
[330207242,1719160238014,-150.0,0.000111,2]
[330207243,1719160238025,-150.0,0.000111,2]
[330207244,1719160238035,-354.29,0.000111,2]
[330207245,1719160238045,-300.0,0.000111,4]
[330207246,1719160238055,-527.66,0.000112,2]
[330207247,1719160238066,-150.0,0.000112,2]
[330207248,1719160238075,-216.48491599,0.000112,2]
[330207249,1719160238087,-219.68508401,0.000112,2]
[330207250,1719160238097,-600.0,0.000112,4]
[330207251,1719160238111,-155.09203532,0.00011264,2]
[330207252,1719160238121,-1251.56233215,0.00011271,2]
[330207253,1719160238131,-1251.56233215,0.00011271,2]
[330207254,1719160238140,-1000.0,0.00011272,2]
[330207255,1719160238149,-227.70652855,0.00011297,2]
[330207256,1719160238158,-460.85832052,0.00011297,2]
[330207257,1719160238170,-460.85832052,0.00011297,2]
[330207258,1719160238179,-482.87871356,0.00011297,2]
[330207259,1719160238188,-2375.40634291,0.00011299,2]
[330207260,1719160238197,-1000.0,0.000113,4]
[330207261,1719160238206,-1300.0,0.000114,4]
[330207262,1719160238216,-1700.0,0.000115,4]
[330207263,1719160238226,-420.0,0.0001158,2]
[330207264,1719160238236,-300.0,0.000116,4]
[330207265,1719160238245,-155.0,0.00011643,2]
[330207266,1719160238255,-1854.65683489,0.00011644,2]
[330207267,1719160238276,-300.11965555,0.00011644,2]
[330207268,1719160238288,-1522.57839701,0.00011644,2]
[330207269,1719160238340,-318.21924388,0.00010533,2]
[330207270,1719160238350,-220.95981092,0.00011644,2]
[330207272,1719160238361,-454.67894768,0.00011644,2]
[330207273,1719160238375,-1699.81446976,0.00011644,2]
[330207276,1719160238390,-322.64030277,0.00011644,2]
[330207278,1719160238402,-26445.55158142,0.00011644,2]
[330207280,1719160238413,-300.0,0.000117,4]
[330207282,1719160238423,-300.0,0.000118,4]
[330207283,1719160238437,-2225.65565109,0.0001188,2]
[330207286,1719160238456,-901.37718854,0.0001188,2]
[330207287,1719160238468,-15519.30665377,0.0001188,2]
[330207288,1719160238478,-2151.13506,0.0001188,2]
[330207289,1719160238488,-300.0,0.000119,4]
[330207290,1719160238497,-245.9569691,0.000119,2]
[330207291,1719160238506,-379.36317218,0.000119,2]
[330207292,1719160238517,-4105.12820947,0.000119,2]
[330207293,1719160238527,-551.45094862,0.000119,2]
[330207294,1719160238538,-500.0,0.00011904,2]
[330207295,1719160238548,-3975.4827,0.00011973,2]
[330207296,1719160238557,-7326.36228538,0.00011998,2]
[330207297,1719160238567,-1045.97037746,0.00011999,3]
[330207298,1719160238577,-104229.40718231,0.00012,2]
[330207299,1719160238588,-2955.22036203,0.00012,2]
[330207300,1719160238600,-3360.28349679,0.00012,2]
[330207301,1719160238611,-519.7933878,0.00012,2]
[330207317,1719160239924,-517.9671284,0.00011002,2]
[330207318,1719160239934,-499.99,0.00011056,2]
[330207319,1719160239945,-209.93885083,0.00011579,2]
[330207320,1719160240166,-5449.01902268,0.00012,2]
[330207321,1719160240178,-37573.50822376,0.00012,2]
[330207322,1719160240191,-540.18000005,0.00012,2]
[330207323,1719160240217,-1062.73661376,0.00012,2]
[330207324,1719160240230,-42581.48907596,0.00012,2]
[330207325,1719160240242,-463.41916063,0.00012,2]
[330207326,1719160240254,-290.65142386,0.00012,2]
[330207327,1719160240266,-16889.99481511,0.00012,2]
[330207328,1719160240278,-273.86600464,0.00012,2]
[330207329,1719160240290,-510.98056953,0.00012,2]
[330207330,1719160240335,-24104.6103854,0.00012,2]
[330207331,1719160240441,-3512.54571817,0.00012,2]
[330207332,1719160240467,-20986.11644675,0.00012,2]
[330207333,1719160240483,-650.54998944,0.00012,2]
[330207334,1719160240499,-647.94517802,0.00012,2]
[330207335,1719160240512,-3137.59487043,0.00012,2]
[330207336,1719160240524,-3602.21195516,0.00012,2]
[330207337,1719160240536,-4128.63986883,0.00012,2]
[330207338,1719160240548,-3933.36463944,0.00012,2]
[330207339,1719160240559,-4432.26839026,0.00012,2]
[330207340,1719160240571,-6757.96750055,0.00012,2]
[330207341,1719160240582,-39335.07785512,0.00012,2]
[330207342,1719160240594,-1617.592005,0.00012,2]
[330207343,1719160240610,-1363.68834929,0.00012,2]
[330207344,1719160240624,-2023.404,0.00012,2]
[330207345,1719160240645,-4159.71966793,0.00012,2]
[330207346,1719160240657,-728.05842579,0.00012,2]
[330207347,1719160240669,-861.78488582,0.00012,2]
[330207371,1719160242864,-460.85832052,0.00011271,2]
[330207372,1719160242874,-169.32470947,0.00012,2]
[330207373,1719160242885,-63492.01899174,0.00012,2]
[330207374,1719160242983,-18892.58799307,0.00012,2]
[330207375,1719160243019,-276.224985,0.00012,2]
[330207376,1719160243030,-5231.21225213,0.00012,2]
[330207377,1719160243042,-508.28687562,0.00012,2]
[330207378,1719160243063,-717.75861333,0.00012,2]
[330207379,1719160243089,-826.16584258,0.00012,2]
[330207380,1719160243107,-9272.23940014,0.00012,2]
[330207381,1719160243125,-1324.29662438,0.00012,2]
[330207382,1719160243170,-18779.29245418,0.00012,2]
[330207384,1719160245860,-155.0,0.00011097,2]
[330207385,1719160245872,-127.7605774,0.00011599,2]
[330207386,1719160245909,-27.2394226,0.00011599,2]
[330207387,1719160245923,-297.7121296,0.00012,2]
[330207388,1719160245955,-12977.6,0.00012,2]
[330207389,1719160246001,-346.44906839,0.00012,2]
[330207390,1719160246137,-8579.72315569,0.00012,2]
[330207393,1719160364632,166.95,9.781e-05,2]
[330207394,1719160373124,1428.96160564,9.4e-05,2]
[330207395,1719160380049,206.54037152,9.4e-05,2]
[330207396,1719160383697,1717.22931602,9.4e-05,2]
[330207397,1719160384863,523.58022278,9.4e-05,2]
[330207398,1719160391333,1251.56233215,9.4e-05,2]
[330207399,1719160403385,209.01119486,9.4e-05,2]
[330207402,1719160635538,161.95,8.737e-05,2]
[330207403,1719160672137,-775.63,0.00010339,2]
[330207404,1719160698239,-193.33,0.00011011,2]
[330207405,1719160698260,-482.87871356,0.00011085,2]
[330207406,1719160698282,-1251.56233215,0.0001114,2]
[330207407,1719160698303,-179.03,0.00011184,2]
[330207408,1719160698326,-359.56895429,0.00011199,2]
[330207410,1719160918186,736.84,9.043e-05,2]
[330207415,1719161236288,154.41,0.00010179,2]
[330207416,1719161302231,184.493,0.00025,60]
[330207418,1719161318002,8406.85,0.00010095,2]
[330207423,1719161384151,2801.95,0.00010091,2]
[330207425,1719161390923,411.27901864,0.00010095,2]
[330207427,1719161394082,181.22,0.00010091,2]
[330207442,1719161431970,-154.41,0.00010285,2]
[330207447,1719161431979,-154.41,0.00010391,2]
[330207451,1719161431989,-154.41,0.00010497,2]
[330207453,1719161431998,-58.21331218,0.00010604,2]
[330207454,1719161432023,-96.19668782,0.00010604,2]
[330207455,1719161432032,-154.41,0.0001071,2]
[330207456,1719161432042,-12.86654126,0.00010745,2]
[330207457,1719161432054,-931.162603,0.00010745,2]
[330207458,1719161432063,-529.61139599,0.0001081,2]
[330207459,1719161432073,-155.33834544,0.0001081,2]
[330207460,1719161432083,-250.0,0.00010811,2]
[330207461,1719161432093,-150.0,0.00010959,2]
[330207462,1719161432102,-250.0,0.00010978,2]
[330207463,1719161432112,-150.0,0.00010991,2]
[330207464,1719161432121,-150.0,0.00010992,2]
[330207465,1719161432131,-3434.88,0.00010992,2]
[330207466,1719161432140,-470.78,0.00010992,2]
[330207467,1719161432149,-150.0,0.00010995,2]
[330207468,1719161432159,-150.0,0.00010999,2]
[330207469,1719161432168,-150.0,0.00011,2]
[330207470,1719161432178,-150.0,0.00011,2]
[330207471,1719161432187,-150.0,0.00011,2]
[330207472,1719161432197,-150.0,0.00011003,2]
[330207473,1719161432206,-150.0,0.00011004,2]
[330207474,1719161432217,-299.99,0.00011004,2]
[330207475,1719161432226,-150.0,0.00011007,2]
[330207476,1719161432235,-150.0,0.0001101,2]
[330207477,1719161432245,-150.0,0.00011017,2]
[330207478,1719161432254,-150.0,0.0001102,2]
[330207479,1719161432263,-150.0,0.00011028,2]
[330207480,1719161432273,-150.0,0.00011033,2]
[330207481,1719161432283,-150.0,0.00011037,2]
[330207482,1719161432292,-150.0,0.00011039,2]
[330207483,1719161432302,-150.0,0.00011039,2]
[330207484,1719161432311,-150.0,0.00011049,2]
[330207485,1719161432321,-150.0,0.00011049,2]
[330207486,1719161432331,-150.0,0.00011051,2]
[330207487,1719161432341,-150.0,0.00011052,2]
[330207488,1719161432350,-150.0,0.00011053,2]
[330207489,1719161432360,-150.0,0.00011055,2]
[330207490,1719161432370,-150.0,0.00011055,2]
[330207491,1719161432379,-150.0,0.00011058,2]
[330207492,1719161432389,-150.0,0.0001106,2]
[330207493,1719161432399,-150.0,0.00011066,2]
[330207494,1719161432408,-150.0,0.00011067,2]
[330207495,1719161432417,-150.0,0.00011073,2]
[330207496,1719161432428,-150.0,0.00011073,2]
[330207497,1719161432437,-150.0,0.00011074,2]
[330207498,1719161432447,-150.0,0.00011079,2]
[330207499,1719161432457,-150.0,0.0001108,2]
[330207500,1719161432468,-174.69137307,0.0001108,2]
[330207501,1719161432477,-150.0,0.00011081,2]
[330207502,1719161432486,-150.0,0.00011083,2]
[330207503,1719161432496,-150.0,0.00011083,2]
[330207504,1719161432508,-150.0,0.00011085,2]
[330207505,1719161432518,-150.0,0.00011085,2]
[330207506,1719161432527,-150.0,0.00011087,2]
[330207507,1719161432537,-150.0,0.00011089,2]
[330207508,1719161432547,-150.0,0.00011089,2]
[330207509,1719161432557,-150.0,0.00011092,2]
[330207510,1719161432567,-150.0,0.00011094,2]
[330207511,1719161432576,-150.0,0.000111,2]
[330207512,1719161432586,-150.0,0.00011105,2]
[330207513,1719161432595,-150.0,0.00011108,2]
[330207514,1719161432605,-150.0,0.00011108,2]
[330207515,1719161432614,-150.0,0.00011109,2]
[330207516,1719161432624,-150.0,0.0001111,2]
[330207517,1719161432633,-150.0,0.00011111,2]
[330207518,1719161432642,-150.0,0.00011111,2]
[330207519,1719161432652,-150.0,0.00011113,2]
[330207520,1719161432662,-150.0,0.00011113,2]
[330207521,1719161432671,-150.0,0.00011116,2]
[330207522,1719161432681,-150.0,0.00011117,2]
[330207523,1719161432690,-150.0,0.00011123,2]
[330207524,1719161432700,-150.0,0.00011127,2]
[330207525,1719161432709,-150.0,0.0001113,2]
[330207526,1719161432721,-150.0,0.00011135,2]
[330207527,1719161432730,-150.0,0.00011138,2]
[330207528,1719161432739,-150.0,0.00011138,2]
[330207529,1719161432748,-150.0,0.0001114,2]
[330207530,1719161432759,-150.0,0.00011141,2]
[330207531,1719161432769,-150.0,0.00011147,2]
[330207532,1719161432779,-150.0,0.00011149,2]
[330207533,1719161432790,-150.0,0.00011151,2]
[330207534,1719161432800,-150.0,0.00011154,2]
[330207535,1719161432810,-150.0,0.00011156,2]
[330207536,1719161432820,-150.0,0.0001116,2]
[330207537,1719161432835,-150.0,0.0001117,2]
[330207538,1719161432845,-150.0,0.00011172,2]
[330207539,1719161432855,-150.0,0.00011177,2]
[330207540,1719161432866,-150.0,0.00011183,2]
[330207541,1719161432876,-150.0,0.00011186,2]
[330207542,1719161432886,-150.0,0.00011193,2]
[330207543,1719161432896,-150.0,0.00011194,2]
[330207544,1719161432908,-150.0,0.00011194,2]
[330207545,1719161432920,-150.0,0.00011196,2]
[330207546,1719161432930,-6512.42383715,0.000112,2]
[330207547,1719161432970,-8491.17203092,0.000112,2]
[330207548,1719161432982,-359.63841064,0.000112,2]
[330207549,1719161432994,-3528.09959666,0.000112,2]
[330207550,1719161433006,-764.60626949,0.000112,2]
[330207551,1719161433290,-2673.52321107,0.000112,2]
[330207552,1719161433306,-5166.91364935,0.000112,2]
[330207553,1719161433361,-3065.28778418,0.000112,2]
[330207554,1719161433372,-615.77052,0.000112,2]
[330207555,1719161433498,-0.01072616,0.000112,2]
[330207577,1719161440415,-513.6636688,0.00010793,2]
[330207578,1719161440475,-15.94772719,0.00010793,2]
[330207579,1719161440485,-3022.81708204,0.00011094,2]
[330207580,1719161440497,-39565.99841946,0.000112,2]
[330207581,1719161440770,-358.515,0.000112,2]
[330207628,1719161443185,-33173.78083539,0.000112,2]
[330207629,1719161443197,-672.03487054,0.000112,2]
[330207630,1719161443208,-1229.69159329,0.000112,2]
[330207631,1719161443222,-1134.31999994,0.000112,2]
[330207632,1719161443234,-912.45,0.000112,2]
[330207633,1719161443363,-297.59077079,0.000112,2]
[330207634,1719161443374,-506.363244,0.000112,2]
[330207635,1719161443386,-1085.140985,0.000112,2]
[330207636,1719161443397,-1365.5162,0.000112,2]
[330207637,1719161443409,-57322.14951469,0.000112,2]
[330207638,1719161443420,-567.63859501,0.000112,2]
[330207639,1719161443441,-7963.56034416,0.000112,2]
[330207640,1719161443452,-332.64456287,0.000112,2]
[330207641,1719161443477,-28485.87142527,0.000112,2]
[330207642,1719161443487,-3662.334,0.000112,2]
[330207643,1719161443497,-150.0,0.000112,2]
[330207644,1719161443507,-150.0,0.00011201,2]
[330207645,1719161443517,-150.0,0.00011203,2]
[330207646,1719161443526,-150.0,0.00011214,2]
[330207647,1719161443536,-150.0,0.00011217,2]
[330207648,1719161443546,-150.0,0.00011225,2]
[330207649,1719161443556,-150.0,0.00011225,2]
[330207650,1719161443567,-150.0,0.00011226,2]
[330207651,1719161443577,-150.0,0.00011231,2]
[330207652,1719161443586,-150.0,0.00011235,2]
[330207653,1719161443596,-150.0,0.00011241,2]
[330207654,1719161443606,-150.0,0.00011242,2]
[330207655,1719161443616,-150.0,0.00011243,2]
[330207656,1719161443626,-150.0,0.00011243,2]
[330207657,1719161443636,-150.0,0.00011245,2]
[330207658,1719161443645,-150.0,0.00011247,2]
[330207659,1719161443655,-150.0,0.00011251,2]
[330207660,1719161443664,-150.0,0.00011253,2]
[330207661,1719161443675,-150.0,0.00011257,2]
[330207662,1719161443684,-155.0,0.00011258,2]
[330207663,1719161443694,-150.0,0.00011259,2]
[330207664,1719161443705,-150.0,0.00011262,2]
[330207665,1719161443716,-150.0,0.00011263,2]
[330207666,1719161443726,-170.28,0.00011265,2]
[330207667,1719161443736,-736.84,0.00011307,2]
[330207668,1719161443745,-499.99,0.00011478,2]
[330207670,1719161443754,-172.59556546,0.00011736,2]
[330207672,1719161443763,-1500.0,0.00011736,2]
[330207673,1719161443773,-152.36409454,0.00011746,2]
[330207675,1719161443783,-300.0,0.00011751,2]
[330207676,1719161443792,-150.0,0.00011751,2]
[330207677,1719161443802,-306.64439152,0.00011753,2]
[330207678,1719161443812,-150.0,0.0001177,2]
[330207679,1719161443821,-150.0,0.00011777,2]
[330207680,1719161443836,-150.0,0.00011781,2]
[330207681,1719161443845,-2096.32833613,0.000118,2]
[330207682,1719161443855,-1500.0,0.00011807,2]
[330207683,1719161443865,-150.0,0.00011812,2]
[330207684,1719161443875,-300.0,0.00011814,2]
[330207685,1719161443884,-150.0,0.00011817,2]
[330207686,1719161443894,-300.0,0.00011826,2]
[330207687,1719161443905,-150.0,0.00011826,2]
[330207688,1719161443916,-981.86,0.00011829,2]
[330207689,1719161443925,-150.0,0.0001183,2]
[330207690,1719161443934,-150.0,0.00011837,2]
[330207691,1719161443944,-150.0,0.00011854,2]
[330207692,1719161443953,-150.0,0.00011858,2]
[330207693,1719161443963,-150.0,0.00011873,2]
[330207694,1719161443974,-1130.60662013,0.00011875,2]
[330207695,1719161443984,-300.0,0.00011881,2]
[330207696,1719161443994,-1500.0,0.00011887,2]
[330207697,1719161444004,-219.9,0.0001189,3]
[330207698,1719161444014,-150.0,0.00011891,2]
[330207699,1719161444023,-150.0,0.00011896,2]
[330207700,1719161444033,-4590.142631,0.000119,2]
[330207701,1719161444043,-477.91431681,0.000119,2]
[330207702,1719161444053,-178.16282074,0.000119,2]
[330207703,1719161444063,-176.60365254,0.000119,2]
[330207704,1719161444072,-182.04870981,0.000119,2]
[330207705,1719161444082,-368.93545364,0.000119,2]
[330207706,1719161444091,-659.86897458,0.000119,2]
[330207707,1719161444101,-176.47864197,0.000119,2]
[330207708,1719161444111,-500.0,0.00011903,2]
[330207709,1719161444121,-500.0,0.00011904,2]
[330207710,1719161444131,-500.0,0.00011904,2]
[330207711,1719161444141,-500.0,0.00011904,2]
[330207712,1719161444151,-500.0,0.00011904,2]
[330207713,1719161444160,-150.0,0.00011904,2]
[330207714,1719161444170,-150.0,0.00011911,2]
[330207715,1719161444179,-300.0,0.00011923,2]
[330207716,1719161444189,-150.0,0.0001193,2]
[330207717,1719161444198,-150.0,0.00011936,2]
[330207718,1719161444208,-1500.0,0.00011951,2]
[330207719,1719161444218,-300.0,0.00011955,2]
[330207720,1719161444229,-150.0,0.00011956,2]
[330207721,1719161444239,-150.0,0.00011959,2]
[330207722,1719161444248,-4781.22548726,0.00011961,2]
[330207723,1719161444258,-1500.0,0.00011962,2]
[330207724,1719161444268,-150.0,0.0001198,2]
[330207725,1719161444278,-3106.52214219,0.0001199,2]
[330207726,1719161444287,-150.0,0.00011991,2]
[330207727,1719161444297,-9115.3362004,0.00011991,2]
[330207728,1719161444307,-150.01,0.00011999,2]
[330207729,1719161444316,-3631.46065509,0.00011999,2]
[330207730,1719161444326,-453670.84929157,0.00012,2]
[330207731,1719161444984,-9017.23495912,0.00012,2]
[330207732,1719161444995,-7180.0,0.00012,2]
[330207735,1719161446243,-307.44854805,0.00012,2]
[330207736,1719161446254,-404.48230813,0.00012,2]
[330207737,1719161446267,-600.62583817,0.00012,2]
[330207738,1719161446280,-581.71067117,0.00012,2]
[330207739,1719161446292,-805.01949952,0.00012,2]
[330207740,1719161446304,-20981.80024993,0.00012,2]
[330207741,1719161446315,-378.25350976,0.00012,2]
[330207742,1719161446328,-960.53421915,0.00012,2]
[330207743,1719161446344,-1508.12163602,0.00012,2]
[330207744,1719161446357,-1380.30322781,0.00012,2]
[330207745,1719161446369,-3877.46310139,0.00012,2]
[330207746,1719161446383,-534.16021158,0.00012,2]
[330207747,1719161446396,-760.9013701,0.00012,2]
[330207748,1719161446410,-3649.03273119,0.00012,2]
[330207749,1719161446422,-169789.97189043,0.00012,2]
[330207750,1719161446436,-30359.8352046,0.00012,2]
[330207751,1719161446449,-7974.61459988,0.00012,2]
[330207752,1719161446461,-2260.99231028,0.00012,2]
[330207753,1719161446472,-2401.02711241,0.00012,2]
[330207754,1719161446484,-1788.83831452,0.00012,2]
[330207755,1719161446496,-501.02949058,0.00012,2]
[330207756,1719161446517,-258.31960914,0.00012,2]
[330207757,1719161446529,-1753.85498398,0.00012,2]
[330207758,1719161446541,-1284.1755862,0.00012,2]
[330207759,1719161446553,-5681.06801467,0.00012,2]
[330207760,1719161446567,-536.415,0.00012,2]
[330207761,1719161446592,-691.03903521,0.00012,2]
[330207762,1719161446604,-16026.68917251,0.00012,2]
[330207763,1719161446616,-453.46218221,0.00012,2]
[330207767,1719161446647,-542.1253363,0.00012,2]
[330207769,1719161446658,-432.75549857,0.00012,2]
[330207771,1719161446669,-544.91435594,0.00012,2]
[330207774,1719161446681,-269.06781082,0.00012,2]
[330207802,1719161475922,254.20654821,0.00010091,2]
[330207804,1719161500315,707.89,9.996e-05,2]
[330207805,1719161557171,-150.0,0.00011723,2]
[330207806,1719161557196,-150.0,0.00011763,2]
[330207807,1719161557219,-150.0,0.00011799,2]
[330207808,1719161557240,-2491.01847886,0.00011799,2]
[330207809,1719161557262,-1500.0,0.00011828,2]
[330207810,1719161557283,-150.0,0.00011831,2]
[330207811,1719161557304,-300.0,0.00011834,2]
[330207812,1719161557326,-1989.05313,0.0001188,2]
[330207813,1719161557351,-150.0,0.00011886,2]
[330207814,1719161557373,-3106.52214219,0.00011899,2]
[330207815,1719161557394,-14553.17835039,0.000119,2]
[330207816,1719161557414,-150.0,0.00011909,2]
[330207817,1719161557435,-300.0,0.0001194,2]
[330207818,1719161557456,-150.0,0.00011941,2]
[330207819,1719161557477,-300.0,0.00011948,2]
[330207820,1719161557498,-10512.5128053,0.00011991,2]
[330207821,1719161557519,-1321.57938699,0.00011992,2]
[330207822,1719161557539,-5379.22250699,0.00011993,2]
[330207823,1719161557560,-1000.0,0.00011995,2]
[330207824,1719161557592,-150.01,0.00011999,2]
[330207825,1719161557617,-3631.46065509,0.00011999,2]
[330207826,1719161557641,-2415.44254419,0.00012,2]
[330207828,1719161565389,20301.89292845,9.996e-05,2]
[330207829,1719161647393,563.84322583,9.996e-05,2]
[330207832,1719161784402,290.13912195,9.996e-05,2]
[330207840,1719162122317,709.34,8.852e-05,2]
[330207842,1719162522000,960.78239639,0.00010121,2]
[330207845,1719162564150,-155.0,0.00010218,2]
[330207846,1719162564172,-218.98195667,0.00010219,2]
[330207847,1719162564194,-960.78239637,0.00010386,2]
[330207848,1719162564216,-863.32045163,0.00010651,2]
[330207849,1719162567955,151.0,0.00026,120]
[330207871,1719162632756,-193.33,0.00010747,2]
[330207872,1719162632766,-250.0,0.00010751,2]
[330207873,1719162632776,-170.28,0.00010753,2]
[330207874,1719162632786,-250.0,0.00010763,2]
[330207875,1719162632795,-261.96304693,0.00010766,2]
[330207876,1719162632808,-1799.29695307,0.00010766,2]
[330207877,1719162632822,-200.0,0.00010854,2]
[330207878,1719162632832,-186.68,0.00010859,2]
[330207879,1719162632841,-981.86,0.00010864,2]
[330207880,1719162632851,-76.71746648,0.00010876,2]
[330207881,1719162632887,-93.15253352,0.00010876,2]
[330207883,1719162633150,-2663.9641156,0.00010958,2]
[330207884,1719162633162,-254.68592052,0.00010958,2]
[330207885,1719162633217,-2460.57247087,0.00010958,2]
[330207886,1719162633226,-298.73996082,0.00010958,2]
[330208080,1719162640443,-201.25003918,0.00010958,2]